bitfinex-derivatives/quotes_BTCF0:USTF0_20251217
["timestamp","ask_amount","ask_price","bid_price","bid_amount"]
[1765957390719,0.256,87067.0,87066.0,0.2133091]
[1765957391113,0.255,87067.0,87066.0,0.2133091]
[1765957391312,0.256,87067.0,87066.0,0.2133091]
[1765957392424,0.255,87067.0,87066.0,0.2133091]
[1765957392725,0.256,87067.0,87066.0,0.2133091]
[1765957394024,0.255,87067.0,87066.0,0.2133091]
[1765957394226,0.256,87067.0,87066.0,0.2133091]
[1765957396419,0.002,87067.0,87066.0,0.2133091]
[1765957396921,0.12835,87067.0,87066.0,0.2133091]
[1765957397925,0.12735,87067.0,87066.0,0.2133091]
[1765957398223,0.12835,87067.0,87066.0,0.2133091]
[1765957398610,0.256,87067.0,87066.0,0.2133091]
[1765957400428,0.255,87067.0,87066.0,0.2133091]
[1765957400622,0.256,87067.0,87066.0,0.2133091]
[1765957402523,0.255,87067.0,87066.0,0.2133091]
[1765957402828,0.256,87067.0,87066.0,0.2133091]
[1765957404923,0.255,87067.0,87066.0,0.2133091]
[1765957405124,0.256,87067.0,87066.0,0.2133091]
[1765957406618,0.257,87067.0,87066.0,0.2133091]
[1765957409426,0.257,87067.0,87066.0,0.25434282]
[1765957409732,0.256,87067.0,87066.0,0.25434282]
[1765957410624,0.255,87067.0,87066.0,0.25434282]
[1765957410930,0.256,87067.0,87066.0,0.25434282]
[1765957411433,0.255,87067.0,87066.0,0.2133091]
[1765957411633,0.256,87067.0,87066.0,0.2133091]
[1765957412333,0.255,87067.0,87066.0,0.2133091]
[1765957413235,0.255,87067.0,87066.0,0.27483627]
[1765957414424,0.256,87067.0,87066.0,0.27483627]
[1765957414736,0.001,87067.0,87066.0,0.2133091]
[1765957415438,0.11501229,87076.0,87075.0,0.157628]
[1765957415635,0.00017229,87076.0,87075.0,0.518428]
[1765957420126,0.00017229,87076.0,87075.0,0.519428]
[1765957422147,0.23013229,87076.0,87075.0,0.519428]
[1765957423142,0.23013229,87076.0,87075.0,1.240388]
[1765957423537,0.23013229,87076.0,87075.0,1.239388]
[1765957424039,0.23113229,87076.0,87075.0,1.239388]
[1765957424341,0.23113229,87076.0,87075.0,0.518428]
[1765957424531,0.23113229,87076.0,87075.0,1.28044938]
[1765957424729,0.44200759,87111.0,87100.0,0.1371247]
[1765957424938,0.18254,87110.0,87109.0,0.1371235]
[1765957425128,0.29705,87110.0,87109.0,0.1371235]
[1765957425438,0.29705,87110.0,87109.0,0.12564]
[1765957425640,0.29705,87110.0,87109.0,0.06282]
[1765957425842,0.06709,87110.0,87108.0,0.3608]
[1765957426036,0.29705,87102.0,87101.0,0.12423219]
[1765957427035,0.29705,87102.0,87101.0,0.06220219]
[1765957427237,0.29805,87102.0,87101.0,0.12323219]
[1765957428236,0.29805,87102.0,87101.0,0.06220219]
[1765957428948,0.29805,87102.0,87101.0,0.00017219]
[1765957429446,0.29905,87102.0,87101.0,0.00017219]
[1765957429636,0.29805,87102.0,87101.0,0.00017219]
[1765957429838,0.29905,87102.0,87101.0,0.00017219]
[1765957430534,0.29705,87102.0,87101.0,0.00017219]
[1765957430738,0.29905,87102.0,87101.0,0.00017219]
[1765957433047,0.29905,87102.0,87101.0,0.11244219]
[1765957434043,0.29805,87102.0,87101.0,0.05727219]
[1765957434638,0.29705,87102.0,87101.0,0.05727219]
[1765957434843,0.29805,87102.0,87101.0,0.05727219]
[1765957436645,0.29905,87102.0,87101.0,0.00017219]
[1765957437045,0.22996,87093.0,87092.0,0.0114857]
[1765957437444,0.22996,87093.0,87092.0,0.1136957]
[1765957440555,0.23096,87093.0,87092.0,0.1136957]
[1765957441957,0.23096,87093.0,87092.0,0.0114857]
[1765957442151,0.23096,87093.0,87092.0,0.0584657]
[1765957442350,0.23096,87093.0,87092.0,0.1054457]
[1765957442861,0.22996,87093.0,87092.0,0.1054457]
[1765957443753,0.23096,87093.0,87092.0,0.1054457]
[1765957445556,0.21263,87091.0,87085.0,0.03070657]
[1765957445754,0.001,87093.0,87084.0,0.00017219]
[1765957445755,0.21263,87086.0,87084.0,0.03087876]
[1765957445963,0.06297,87090.0,87084.0,0.00017219]
[1765957445964,0.2241167,87085.0,87084.0,0.00017219]
[1765957447353,0.2251167,87085.0,87084.0,0.00017219]
[1765957447862,0.2271167,87085.0,87084.0,0.00017219]
[1765957448655,0.21563,87085.0,87084.0,0.00017219]
[1765957450363,0.21363,87085.0,87084.0,0.00017219]
[1765957450766,0.21463,87085.0,87084.0,0.00017219]
[1765957451166,0.21363,87085.0,87084.0,0.00017219]
[1765957451366,0.21463,87085.0,87084.0,0.00017219]
[1765957451569,0.21463,87085.0,87075.0,0.011488]
[1765957451570,0.21263,87076.0,87075.0,0.011488]
[1765957452758,0.21263,87076.0,87075.0,0.086488]
[1765957452969,0.21363,87076.0,87075.0,0.086488]
[1765957453767,0.21263,87076.0,87075.0,0.086488]
[1765957456566,0.21363,87076.0,87075.0,0.086488]
[1765957457374,0.21263,87076.0,87075.0,0.086488]
[1765957458977,0.21363,87076.0,87075.0,0.086488]
[1765957459767,0.21263,87076.0,87075.0,0.086488]
[1765957459970,0.21363,87076.0,87075.0,0.086488]
[1765957460569,0.21263,87076.0,87075.0,0.086488]
[1765957460770,0.21363,87076.0,87075.0,0.086488]
[1765957461174,0.21463,87076.0,87075.0,0.086488]
[1765957461367,0.21263,87068.0,87067.0,0.03087876]
[1765957461568,0.23778,87065.0,87064.0,0.02953428]
[1765957461765,0.23778,87065.0,87058.0,0.00229733]
[1765957461766,0.21263,87059.0,87058.0,0.00229733]
[1765957461976,0.21263,87059.0,87058.0,0.21542733]
[1765957463063,0.21463,87059.0,87058.0,0.21542733]
[1765957463267,0.21563,87059.0,87058.0,0.00229733]
[1765957463872,0.21363,87059.0,87058.0,0.00229733]
[1765957464073,0.21463,87059.0,87058.0,0.00229733]
[1765957464271,0.21463,87059.0,87058.0,0.21542733]
[1765957464474,0.21363,87059.0,87058.0,0.21542733]
[1765957464672,0.21463,87059.0,87058.0,0.21542733]
[1765957465280,0.21363,87059.0,87058.0,0.21542733]
[1765957465482,0.21463,87059.0,87058.0,0.21542733]
[1765957466379,0.21363,87059.0,87058.0,0.21542733]
[1765957466879,0.21463,87059.0,87058.0,0.21542733]
[1765957468291,0.21363,87059.0,87058.0,0.21542733]
[1765957468489,0.21463,87059.0,87058.0,0.21542733]
[1765957470082,0.21363,87059.0,87058.0,0.21542733]
[1765957470379,0.21463,87059.0,87058.0,0.21542733]
[1765957471888,0.21463,87059.0,87058.0,0.00229733]
[1765957472189,0.21463,87059.0,87058.0,0.11023733]
[1765957472594,0.21463,87059.0,87058.0,0.21542733]
[1765957473682,0.21463,87059.0,87058.0,0.11023733]
[1765957473882,0.21463,87059.0,87058.0,0.00229733]
[1765957479903,0.57543,87059.0,87058.0,0.00229733]
[1765957484305,0.57543,87059.0,87058.0,0.23791733]
[1765957485511,0.21463,87059.0,87058.0,0.23791733]
[1765957487706,0.002,87059.0,87058.0,0.23791733]
[1765957488209,0.12392,87059.0,87058.0,0.23791733]
[1765957488409,0.24272,87059.0,87058.0,0.23791733]
[1765957500107,0.002,87059.0,87058.0,0.23791733]
[1765957500305,0.24272,87059.0,87058.0,0.23791733]
[1765957500507,0.12392,87059.0,87058.0,0.23791733]
[1765957500699,0.24272,87059.0,87058.0,0.23791733]
[1765957503114,0.24272,87059.0,87058.0,0.2790316]
[1765957504217,0.24272,87059.0,87058.0,0.23791733]
[1765957506410,0.24272,87059.0,87058.0,0.2790316]
[1765957508428,0.24272,87059.0,87058.0,0.23791733]
[1765957509427,0.002,87059.0,87058.0,0.23791733]
[1765957509623,0.11268,87059.0,87058.0,0.23791733]
[1765957509823,0.002,87059.0,87058.0,0.23791733]
[1765957510222,0.58660219,87076.0,87075.0,0.22646]
[1765957510414,0.58660219,87076.0,87075.0,0.304968]
[1765957510415,0.22580219,87076.0,87075.0,0.304968]
[1765957511517,0.22880219,87076.0,87075.0,0.304968]
[1765957512228,0.23180219,87076.0,87075.0,0.237948]
[1765957513629,0.23180219,87076.0,87075.0,0.304968]
[1765957514226,0.22563,87067.0,87066.0,0.05259031]
[1765957514527,0.58643,87067.0,87066.0,0.0114892]
[1765957515121,0.58643,87067.0,87066.0,0.1247092]
[1765957515321,0.58643,87067.0,87066.0,0.2379492]
[1765957515722,0.58843,87067.0,87066.0,0.2379492]
[1765957515935,0.59043,87067.0,87066.0,0.2379492]
[1765957517422,0.59043,87067.0,87066.0,0.0114892]
[1765957523729,0.22563,87064.0,87063.0,0.0114895]
[1765957525140,0.22663,87064.0,87063.0,0.0114895]
[1765957525335,0.22863,87064.0,87063.0,0.0114895]
[1765957533341,0.22863,87064.0,87063.0,0.1247095]
[1765957534048,0.22863,87064.0,87063.0,0.2379495]
[1765957535941,0.22863,87064.0,87063.0,0.0114895]
[1765957536146,0.2887,87064.0,87063.0,0.0114895]
[1765957536448,0.2887,87064.0,87063.0,0.1161095]
[1765957539243,0.2887,87064.0,87063.0,0.0114895]
[1765957545548,0.06307,87064.0,87059.0,0.04110111]
[1765957545855,0.2218201,87059.0,87058.0,0.00229733]
[1765957546542,0.2218201,87059.0,87058.0,0.00029733]
[1765957546851,0.2218201,87059.0,87038.0,0.08207149]
[1765957546852,0.21033,87019.0,87012.0,0.06573]
[1765957547041,0.59684189,87019.0,87018.0,0.21201839]
[1765957547241,1.12703189,87019.0,87018.0,0.21201839]
[1765957547442,0.21033,87019.0,87018.0,0.21201839]
[1765957547646,0.2359859,87019.0,87018.0,0.21201839]
[1765957547842,0.26430151,87019.0,87018.0,0.21201839]
[1765957548151,0.26530151,87019.0,87018.0,0.21201839]
[1765957549357,0.23964561,87019.0,87018.0,0.21201839]
[1765957550353,0.001,87019.0,87018.0,0.21201839]
[1765957551247,0.00017229,87027.0,87026.0,0.2212144]
[1765957553145,0.3608,87038.0,87037.0,0.221213]
[1765957555158,0.3608,87038.0,87037.0,0.222213]
[1765957555454,0.57113,87038.0,87037.0,0.222213]
[1765957557459,0.57113,87038.0,87037.0,0.223213]
[1765957557860,0.57113,87038.0,87037.0,0.221213]
[1765957558160,0.57113,87038.0,87037.0,0.222213]
[1765957560062,0.57113,87038.0,87037.0,0.221213]
[1765957560258,0.57113,87038.0,87037.0,0.222213]
[1765957560966,0.57113,87038.0,87037.0,0.221213]
[1765957562062,0.3608,87038.0,87037.0,0.221213]
[1765957562465,0.46676,87038.0,87037.0,0.221213]
[1765957562863,0.57113,87038.0,87037.0,0.221213]
[1765957563965,0.57113,87038.0,87037.0,0.222213]
[1765957564869,0.02940801,87043.0,87042.0,0.2350923]
[1765957565053,0.58502229,87046.0,87045.0,0.3032419]
[1765957565361,0.47685229,87046.0,87045.0,0.3032419]
[1765957565764,0.36097229,87046.0,87045.0,0.3032419]
[1765957566970,0.00017229,87046.0,87045.0,0.3032419]
[1765957567570,0.58485,87058.0,87057.0,0.2350903]
[1765957567754,0.64439771,87058.0,87057.0,0.2350903]
[1765957568866,0.64639771,87058.0,87057.0,0.2350903]
[1765957569876,0.22405,87056.0,87055.0,0.06815]
[1765957570067,0.22405,87056.0,87053.0,0.0114908]
[1765957570068,0.22405,87050.0,87049.0,0.00017229]
[1765957570367,0.61506062,87050.0,87049.0,0.00017229]
[1765957570570,0.61506062,87050.0,87049.0,0.11349229]
[1765957570964,0.61506062,87050.0,87049.0,0.22377229]
[1765957572874,0.61606062,87050.0,87049.0,0.22377229]
[1765957573276,0.001,87050.0,87049.0,0.22377229]
[1765957573776,0.58485,87058.0,87057.0,0.2236]
[1765957573972,0.61507041,87058.0,87057.0,0.2350903]
[1765957574971,0.61807041,87058.0,87057.0,0.2350903]
[1765957575173,0.58785,87058.0,87057.0,0.2350903]
[1765957579276,0.3638,87058.0,87057.0,0.2350903]
[1765957580174,0.22422229,87066.0,87065.0,0.3032393]
[1765957580375,0.25436604,87066.0,87065.0,0.6640393]
[1765957580780,0.22422229,87066.0,87065.0,0.6640393]
[1765957581580,0.22822229,87066.0,87065.0,0.6640393]
[1765957585077,0.22822229,87066.0,87065.0,0.3722893]
[1765957585284,0.22822229,87066.0,87065.0,0.6640393]
[1765957586981,0.22822229,87066.0,87065.0,0.3032393]
[1765957587278,0.22822229,87066.0,87065.0,0.0114893]
[1765957587483,0.25786271,87066.0,87065.0,0.0114893]
[1765957590690,0.25786271,87066.0,87065.0,0.3032393]
[1765957591184,0.03381271,87066.0,87065.0,0.3032393]
[1765957591488,0.14969271,87066.0,87065.0,0.3032393]
[1765957591786,0.25786271,87066.0,87065.0,0.3032393]
[1765957600994,0.25786271,87066.0,87065.0,0.0114893]
[1765957601192,0.25786271,87066.0,87065.0,0.1381093]
[1765957601396,0.25786271,87066.0,87065.0,0.2640193]
[1765957601694,0.25786271,87066.0,87065.0,0.0114893]
[1765957601881,0.25786271,87066.0,87065.0,0.1381093]
[1765957602688,0.25786271,87066.0,87065.0,0.2640193]
[1765957603696,0.25786271,87066.0,87065.0,0.1381093]
[1765957605097,0.25786271,87066.0,87065.0,0.2640193]
[1765957606894,0.25786271,87066.0,87065.0,0.0114893]
[1765957610700,0.25786271,87066.0,87054.0,0.42895]
[1765957610701,0.0114899,87063.0,87062.0,0.0114896]
[1765957610893,0.24683,87056.0,87055.0,0.0114906]
[1765957611094,0.27647042,87056.0,87055.0,0.0114906]
[1765957612703,0.27747042,87056.0,87055.0,0.0114906]
[1765957613299,0.27747042,87056.0,87055.0,0.1381106]
[1765957614303,0.27747042,87056.0,87055.0,0.2640206]
[1765957614697,0.27747042,87056.0,87055.0,0.3364806]
[1765957615405,0.27747042,87056.0,87055.0,0.6972806]
[1765957627112,0.27747042,87056.0,87055.0,0.0114906]
[1765957627313,0.23764,87052.0,87051.0,0.011491]
[1765957627511,0.26728042,87052.0,87051.0,0.132411]
[1765957627708,0.26728042,87052.0,87051.0,0.252391]
[1765957644816,0.02964042,87052.0,87051.0,0.252391]
[1765957645014,0.26728042,87052.0,87051.0,0.252391]
[1765957645221,0.02964042,87052.0,87051.0,0.252391]
[1765957646115,0.02964042,87052.0,87051.0,0.613191]
[1765957646423,0.14604122,87061.0,87060.0,0.3192699]
[1765957646628,0.26580122,87061.0,87060.0,0.6800699]
[1765957646931,0.23764,87061.0,87060.0,0.6800699]
[1765957647922,0.23864,87061.0,87060.0,0.6800699]
[1765957648627,0.23964,87061.0,87060.0,0.6800699]
[1765957652336,0.23964,87061.0,87060.0,0.30778]
[1765957652534,0.23764,87050.0,87040.0,0.06688]
[1765957653126,0.29964061,87050.0,87040.0,0.06688]
[1765957653338,0.23764,87050.0,87040.0,0.06688]
[1765957653831,0.23764,87050.0,87036.0,0.06688]
[1765957654037,0.23764,87050.0,87032.0,0.06688]
[1765957654531,0.2386735,87033.0,87032.0,0.30337]
[1765957655531,0.229984,87029.0,87028.0,0.292]
[1765957655732,0.229984,87029.0,87028.0,0.22512]
[1765957655934,0.2299846,87025.0,87024.0,0.22529229]
[1765957656328,0.2299846,87025.0,87024.0,0.00017229]
[1765957656635,0.2299846,87025.0,87024.0,0.10972229]
[1765957656938,0.2299846,87025.0,87024.0,0.22321229]
[1765957658333,0.25872082,87025.0,87024.0,0.22321229]
[1765957658725,0.25972082,87025.0,87024.0,0.22321229]
[1765957659538,0.25972082,87025.0,87024.0,0.00017229]
[1765957659835,0.25972082,87025.0,87024.0,0.22637229]
[1765957660228,0.25972082,87025.0,87024.0,0.00017229]
[1765957660429,0.31976082,87025.0,87024.0,0.00017229]
[1765957660624,0.33318294,87025.0,87024.0,0.00017229]
[1765957660840,0.2337254,87019.0,87017.0,0.00013474]
[1765957661136,0.62326162,87019.0,87017.0,0.00013474]
[1765957661528,0.2337271,87006.0,87005.0,0.29163]
[1765957662640,0.23386436,87006.0,87005.0,0.29163]
[1765957663743,0.23386436,87006.0,87005.0,0.29363]
[1765957666052,0.22236726,87006.0,87005.0,0.29363]
[1765957678050,0.00013726,87006.0,87005.0,0.29363]
[1765957679447,0.02886706,87006.0,87005.0,0.29363]
[1765957679654,0.00013726,87006.0,87005.0,0.29363]
[1765957680652,0.02888322,87006.0,87005.0,0.29363]
[1765957681852,0.25111322,87006.0,87005.0,0.29363]
[1765957682154,0.2337281,86998.0,86997.0,0.0001724]
[1765957682450,0.26247406,86998.0,86997.0,0.2263724]
[1765957683153,0.32435897,86998.0,86997.0,0.2283724]
[1765957683447,0.25097596,86998.0,86997.0,0.2283724]
[1765957683647,0.25097596,86998.0,86997.0,0.5891724]
[1765957684951,0.25097596,86998.0,86997.0,0.5871724]
[1765957685355,0.31291394,86998.0,86997.0,0.5871724]
[1765957686253,0.25097596,86998.0,86997.0,0.5871724]
[1765957692162,0.02874596,86998.0,86997.0,0.5871724]
[1765957692458,0.27517376,87004.0,87003.0,0.21377]
[1765957692660,0.3036962,87004.0,87003.0,0.21377]
[1765957693251,0.2246881,86998.0,86997.0,0.4708324]
[1765957693456,0.3151943,86998.0,86997.0,0.0001724]
[1765957693855,0.21319,86991.0,86990.0,0.2905392]
[1765957694058,0.24171244,86991.0,86990.0,0.2905392]
[1765957695058,0.02852244,86991.0,86990.0,0.2915392]
[1765957695958,0.13590244,86991.0,86990.0,0.2915392]
[1765957696264,0.24171244,86991.0,86990.0,0.2915392]
[1765957696463,0.24171244,86991.0,86990.0,0.2925392]
[1765957701859,0.02852244,86991.0,86990.0,0.2925392]
[1765957702366,0.13590244,86991.0,86990.0,0.2925392]
[1765957703065,0.02852244,86991.0,86990.0,0.2925392]
[1765957704164,0.24171244,86991.0,86990.0,0.2925392]
[1765957709470,0.24171244,86991.0,86990.0,0.6533392]
[1765957711867,0.02852244,86991.0,86990.0,0.6533392]
[1765957712373,0.24171244,86991.0,86990.0,0.6533392]
[1765957723770,0.24171244,86991.0,86990.0,0.6523392]
[1765957724976,0.24271244,86991.0,86990.0,0.6513392]
[1765957725573,0.24371244,86991.0,86990.0,0.6513392]
[1765957726178,0.13690244,86991.0,86990.0,0.6513392]
[1765957726580,0.13790244,86991.0,86990.0,0.6513392]
[1765957726779,0.03052244,86991.0,86990.0,0.6513392]
[1765957727165,0.02952244,86991.0,86990.0,0.6513392]
[1765957727381,0.22920244,86991.0,86990.0,0.6513392]
[1765957728180,0.22920244,86991.0,86990.0,0.63984]
[1765957728569,0.22920244,86991.0,86990.0,0.17513]
[1765957728765,0.22920244,86991.0,86990.0,0.10986]
[1765957728972,0.22920244,86991.0,86987.0,0.2100095]
[1765957728973,0.19968,86988.0,86987.0,0.2100095]
[1765957729174,0.22831495,86988.0,86987.0,0.2100095]
[1765957730484,0.22931495,86988.0,86987.0,0.2100095]
[1765957731582,0.23031495,86988.0,86987.0,0.2100095]
[1765957733277,0.03063495,86988.0,86987.0,0.2100095]
[1765957733480,0.13172495,86988.0,86987.0,0.2100095]
[1765957733781,0.23031495,86988.0,86987.0,0.2100095]
[1765957734678,0.22931495,86988.0,86987.0,0.2100095]
[1765957735079,0.22831495,86988.0,86987.0,0.2100095]
[1765957737683,0.02863495,86988.0,86987.0,0.2100095]
[1765957740983,0.0001724,86996.0,86995.0,0.2100085]
[1765957741287,0.0001724,86996.0,86995.0,0.9316085]
[1765957742087,0.1998524,86996.0,86995.0,0.9316085]
[1765957742278,0.0001724,86996.0,86995.0,0.5718085]
[1765957742879,0.0001724,86996.0,86995.0,0.5728085]
[1765957743793,0.0001724,86996.0,86995.0,0.5718085]
[1765957743983,0.0001724,86996.0,86995.0,0.5728085]
[1765957744285,0.13672,87026.0,86995.0,0.5728085]
[1765957744286,0.55508,87022.0,87021.0,0.2104751]
[1765957745388,0.09148545,87030.0,87029.0,0.19898]
[1765957745389,0.1944524,87030.0,87029.0,0.19898]
[1765957745582,0.22282472,87030.0,87029.0,0.19898]
[1765957745888,0.58362472,87030.0,87029.0,0.19898]
[1765957746480,0.58362472,87030.0,87029.0,0.09869]
[1765957746679,0.2057744,87026.0,87025.0,0.25792]
[1765957746890,0.2057744,87026.0,87025.0,0.19898]
[1765957747496,0.2057751,87021.0,87020.0,0.25792]
[1765957747696,0.38934472,87030.0,87017.0,0.2104755]
[1765957747697,0.2057755,87018.0,87017.0,0.2104755]
[1765957747996,0.19428,87018.0,87017.0,0.2104755]
[1765957748792,0.19628,87018.0,87017.0,0.2104755]
[1765957749192,0.19628,87018.0,87017.0,0.0114955]
[1765957749596,0.19528,87018.0,87017.0,0.1101855]
[1765957749796,0.19628,87018.0,87017.0,0.2104755]
[1765957750395,0.09522,87018.0,87017.0,0.2104755]
[1765957751099,0.09322,87018.0,87017.0,0.2104755]
[1765957751282,0.09522,87018.0,87017.0,0.2104755]
[1765957751690,0.19528,87018.0,87017.0,0.2104755]
[1765957752082,0.19428,87018.0,87017.0,0.2114755]
[1765957752889,0.19428,87018.0,87017.0,0.2104755]
[1765957753598,0.19428,87018.0,87017.0,0.2114755]
[1765957753995,0.19428,87018.0,87017.0,0.2104755]
[1765957754784,0.09322,87018.0,87017.0,0.2104755]
[1765957754985,0.19428,87018.0,87017.0,0.2104755]
[1765957762098,0.19428,87014.0,87000.0,0.05894]
[1765957762299,0.58180898,87014.0,87011.0,0.0114963]
[1765957762600,0.58181523,87014.0,87011.0,0.0114963]
[1765957762906,0.58181523,87014.0,87013.0,0.1991524]
[1765957764006,0.58281523,87014.0,87013.0,0.1991524]
[1765957764695,0.58381523,87014.0,87013.0,0.1991524]
[1765957766805,0.61320143,87014.0,87013.0,0.1991524]
[1765957767204,0.61220143,87014.0,87013.0,0.1991524]
[1765957767504,0.61320143,87014.0,87013.0,0.1991524]
[1765957767909,0.25140143,87014.0,87013.0,0.1991524]
[1765957768109,0.25240143,87014.0,87013.0,0.1991524]
[1765957769404,0.25140143,87014.0,87013.0,0.1991524]
[1765957769605,0.25240143,87014.0,87013.0,0.1991524]
[1765957770010,0.25140143,87014.0,87013.0,0.1991524]
[1765957770212,0.25240143,87014.0,87013.0,0.1991524]
[1765957770605,0.25140143,87014.0,87013.0,0.1991524]
[1765957770810,0.15034143,87014.0,87013.0,0.1991524]
[1765957771108,0.25140143,87014.0,87013.0,0.1991524]
[1765957771510,0.25040143,87014.0,87013.0,0.1991524]
[1765957771806,0.22099895,87014.0,87013.0,0.1991524]
[1765957772199,0.23249495,87014.0,87013.0,0.1991524]
[1765957772398,0.23249495,87014.0,87013.0,0.0988624]
[1765957773707,0.23349495,87014.0,87013.0,0.0988624]
[1765957775013,0.23349495,87014.0,87013.0,0.1991524]
[1765957775014,0.23449495,87014.0,87013.0,0.1991524]
[1765957777407,0.23449495,87014.0,87013.0,0.0001724]
[1765957778115,0.23349495,87014.0,87013.0,0.0001724]
[1765957778319,0.23449495,87014.0,87013.0,0.0001724]
[1765957779705,0.23349495,87014.0,87013.0,0.0001724]
[1765957779910,0.23449495,87014.0,87013.0,0.0001724]
[1765957780810,0.23549495,87014.0,87013.0,0.0001724]
[1765957781914,0.23649495,87014.0,87013.0,0.0001724]
[1765957786910,0.23649495,87014.0,87013.0,0.1871224]
[1765957787616,0.23449495,87014.0,87013.0,0.1871224]
[1765957787822,0.23649495,87014.0,87013.0,0.1871224]
[1765957788127,0.22499895,87014.0,87013.0,0.1871224]
[1765957789118,0.12193895,87014.0,87013.0,0.1871224]
[1765957789329,0.02971895,87014.0,87013.0,0.1871224]
[1765957789517,0.02771895,87014.0,87013.0,0.1871224]
[1765957789840,0.12291895,87014.0,87013.0,0.1871224]
[1765957790029,0.21463895,87014.0,87013.0,0.1871224]
[1765957790417,0.21363895,87014.0,87013.0,0.1871224]
[1765957792020,0.12191895,87014.0,87013.0,0.1871224]
[1765957792221,0.21363895,87014.0,87013.0,0.1871224]
[1765957793728,0.12191895,87014.0,87013.0,0.1871224]
[1765957795020,0.02671895,87014.0,87013.0,0.1871224]
[1765957795926,0.02914343,87018.0,87013.0,0.1871224]
[1765957795927,0.07977198,87023.0,87020.0,0.05397]
[1765957796128,0.0280656,87028.0,87027.0,0.18695]
[1765957796315,0.0952,87028.0,87027.0,0.18695]
[1765957796519,0.18692,87028.0,87027.0,0.18695]
[1765957796930,0.0953724,87030.0,87029.0,0.18695]
[1765957797224,0.1870924,87030.0,87029.0,0.18695]
[1765957798521,0.18692,87025.0,87024.0,0.2524147]
[1765957799431,0.18692,87021.0,87020.0,0.1037651]
[1765957799622,0.18692,87021.0,87020.0,0.1984451]
[1765957800032,0.18692,87021.0,87020.0,0.2524151]
[1765957802834,0.1984151,87021.0,87020.0,0.24092]
[1765957803137,0.18692,87021.0,87020.0,0.24092]
[1765957804735,0.18792,87021.0,87020.0,0.24092]
[1765957805640,0.18892,87021.0,87020.0,0.24092]
[1765957805930,0.002,87021.0,87020.0,0.24092]
[1765957806131,0.17994,87021.0,87020.0,0.24092]
[1765957806333,0.17894,87021.0,87020.0,0.24092]
[1765957807136,0.17794,87021.0,87020.0,0.18695]
[1765957808437,0.17894,87021.0,87020.0,0.18695]
[1765957808938,0.20512175,87021.0,87020.0,0.18695]
[1765957809141,0.17894,87021.0,87020.0,0.18695]
[1765957809326,0.1894356,87017.0,87016.0,0.17897]
[1765957809528,0.17794,87014.0,87013.0,0.1906385]
[1765957809836,0.20412198,87014.0,87013.0,0.1906385]
[1765957813122,0.20512198,87014.0,87013.0,0.1906385]
[1765957814131,0.20612198,87014.0,87013.0,0.1906385]
[1765957814332,0.20612198,87014.0,87013.0,0.1791424]
[1765957814535,0.20512198,87014.0,87013.0,0.1791424]
[1765957814839,0.20612198,87014.0,87013.0,0.1791424]
[1765957815432,0.20512198,87014.0,87013.0,0.1791424]
[1765957815730,0.20612198,87014.0,87013.0,0.1791424]
[1765957816029,0.20512198,87014.0,87013.0,0.1791424]
[1765957816434,0.20612198,87014.0,87013.0,0.1791424]
[1765957817744,0.20512198,87014.0,87013.0,0.1791424]
[1765957817946,0.20612198,87014.0,87013.0,0.1791424]
[1765957819340,0.20512198,87014.0,87013.0,0.1791424]
[1765957819545,0.20612198,87014.0,87013.0,0.1791424]
[1765957819936,0.20512198,87014.0,87013.0,0.1791424]
[1765957820132,0.20612198,87014.0,87013.0,0.1791424]
[1765957820348,0.20612198,87014.0,87013.0,0.0001724]
[1765957820643,0.20512198,87014.0,87013.0,0.1791424]
[1765957820838,0.20712198,87014.0,87013.0,0.1791424]
[1765957821042,0.20812198,87014.0,87013.0,0.1791424]
[1765957821347,0.20812198,87014.0,87013.0,0.0001724]
[1765957821742,0.20612198,87014.0,87013.0,0.0001724]
[1765957821936,0.20812198,87014.0,87013.0,0.0001724]
[1765957822133,0.20812198,87014.0,87013.0,0.0893624]
[1765957822542,0.20812198,87014.0,87013.0,0.1791424]
[1765957822741,0.20612198,87014.0,87013.0,0.1791424]
[1765957822953,0.20812198,87014.0,87013.0,0.1791424]
[1765957823249,0.20812198,87014.0,87013.0,0.0893624]
[1765957823838,0.20612198,87014.0,87013.0,0.0893624]
[1765957824050,0.20812198,87014.0,87013.0,0.0893624]
[1765957824447,0.20612198,87014.0,87013.0,0.0893624]
[1765957824643,0.20812198,87014.0,87013.0,0.0893624]
[1765957825041,0.20812198,87014.0,87013.0,0.1791424]
[1765957827652,0.20412198,87014.0,87013.0,0.1791424]
[1765957827948,0.20812198,87014.0,87013.0,0.1791424]
[1765957830354,0.20612198,87014.0,87013.0,0.1791424]
[1765957830556,0.20812198,87014.0,87013.0,0.1791424]
[1765957830944,0.20612198,87014.0,87013.0,0.1791424]
[1765957831350,0.20812198,87014.0,87013.0,0.1791424]
[1765957833553,0.02818198,87014.0,87013.0,0.1791424]
[1765957833752,0.004,87014.0,87013.0,0.5399424]
[1765957834158,0.02815361,87014.0,87013.0,0.5399424]
[1765957834455,0.02915361,87014.0,87013.0,0.5399424]
[1765957835051,0.02715361,87014.0,87013.0,0.5399424]
[1765957835349,0.11811361,87014.0,87013.0,0.5399424]
[1765957835859,0.02615361,87014.0,87013.0,0.5399424]
[1765957838061,0.02615361,87014.0,87013.0,0.5409424]
[1765957838259,0.02615361,87014.0,87013.0,0.5419424]
[1765957838950,0.02615361,87014.0,87013.0,0.5409424]
[1765957839151,0.02615361,87014.0,87013.0,0.5419424]
[1765957841847,0.02615361,87014.0,87013.0,0.5409424]
[1765957842061,0.02615361,87014.0,87013.0,0.5419424]
[1765957843755,0.02615361,87014.0,87013.0,0.5409424]
[1765957844153,0.11097361,87014.0,87013.0,0.5409424]
[1765957844652,0.19418361,87014.0,87013.0,0.5409424]
[1765957844856,0.11097361,87014.0,87013.0,0.5409424]
[1765957845061,0.02615361,87014.0,87013.0,0.5409424]
[1765957845362,0.02615361,87014.0,87013.0,0.5399424]
[1765957847058,0.02615361,87014.0,87013.0,0.5409424]
[1765957847647,0.02615361,87014.0,87013.0,0.5399424]
[1765957847851,0.02615361,87014.0,87013.0,0.5409424]
[1765957848061,0.11097361,87014.0,87013.0,0.5409424]
[1765957848261,0.02615361,87014.0,87013.0,0.5409424]
[1765957848565,0.02615361,87014.0,87013.0,0.5399424]
[1765957849563,0.11097361,87014.0,87013.0,0.5399424]
[1765957849748,0.19418361,87014.0,87013.0,0.5399424]
[1765957850752,0.11097361,87014.0,87013.0,0.5399424]
[1765957850951,0.02615361,87014.0,87013.0,0.5399424]
[1765957851754,0.19652498,87024.0,87023.0,0.1879548]